bitfinex-derivatives/quotes_SOLF0:USTF0_20260310
["timestamp","ask_amount","ask_price","bid_price","bid_amount"]
[1773179282789,10.535,85.422,85.397,19.53551457]
[1773179283284,8.76895159,85.45,85.348,21.088]
[1773179283285,3.50489758,85.42,85.361,19.71071141]
[1773179283780,3.50489758,85.41,85.361,19.71071141]
[1773179284184,3.50489758,85.41,85.365,10.542]
[1773179284484,3.50489758,85.41,85.366,19.73205863]
[1773179285382,3.50489758,85.4,85.366,19.73205863]
[1773179285584,3.50489758,85.41,85.37,19.73219399]
[1773179285786,3.50489758,85.43,85.37,19.73219399]
[1773179286186,3.50489758,85.43,85.389,19.85260512]
[1773179286382,10.533,85.435,85.389,19.85260512]
[1773179286383,3.50489758,85.42,85.389,19.85260512]
[1773179287891,3.50489758,85.43,85.389,19.85260512]
[1773179288592,3.50489758,85.43,85.389,30.39160512]
[1773179288792,3.50489758,85.43,85.39,20.02056778]
[1773179290488,3.50489758,85.43,85.392,19.97864372]
[1773179292692,3.50489758,85.43,85.394,19.95289178]
[1773179292996,3.50489758,85.45,85.394,19.95289178]
[1773179293694,3.50489758,85.45,85.415,19.95307764]
[1773179295497,3.50489758,85.45,85.419,19.94720788]
[1773179306302,3.50489758,85.45,85.421,19.86801008]
[1773179309700,3.50489758,85.46,85.421,19.86801008]
[1773179313505,3.50489758,85.46,85.351,35.05]
[1773179313506,3.50489758,85.47,85.431,19.62865196]
[1773179313804,3.50461215,85.47,85.431,19.62865196]
[1773179314396,3.50461215,85.47,85.442,19.64171869]
[1773179314598,3.50461215,85.48,85.442,19.64171869]
[1773179315406,10.528,85.477,85.442,19.64171869]
[1773179316103,3.50461215,85.48,85.442,19.64171869]
[1773179318313,3.50461215,85.48,85.444,19.69424775]
[1773179319410,3.50461215,85.48,85.446,19.69432775]
[1773179320211,10.528,85.478,85.446,19.69432775]
[1773179323020,3.50461215,85.47,85.446,19.69432775]
[1773179340628,8.79591797,85.48,85.446,19.69432775]
[1773179340833,3.50461215,85.48,85.446,19.69432775]
[1773179342336,3.50461215,85.48,85.446,30.22632775]
[1773179342532,3.50461215,85.48,85.447,17.86573686]
[1773179346137,3.50461215,85.48,85.451,10.531]
[1773179346339,3.50461215,85.48,85.447,17.86573686]
[1773179346841,3.50461215,85.48,85.45,17.99701486]
[1773179347030,10.526,85.491,85.45,17.99701486]
[1773179347235,12.30453205,85.49,85.452,17.99710785]
[1773179347442,8.7999199,85.489,85.452,17.99710785]
[1773179347737,3.50461215,85.49,85.452,17.99710785]
[1773179347932,8.80056889,85.489,85.454,17.99710785]
[1773179348140,3.50461215,85.49,85.454,17.99710785]
[1773179352344,3.50461215,85.49,85.455,18.14419117]
[1773179357250,8.81036075,85.489,85.455,18.14419117]
[1773179357445,3.50461215,85.49,85.455,18.14419117]
[1773179357647,35.11,85.519,85.457,18.19842414]
[1773179357648,3.50461215,85.5,85.457,18.19842414]
[1773179357842,8.81019877,85.499,85.457,18.19842414]
[1773179358043,8.81019877,85.498,85.457,18.19842414]
[1773179358248,8.81019877,85.497,85.457,18.19842414]
[1773179358450,8.81019877,85.496,85.465,18.17441211]
[1773179358752,8.81019877,85.495,85.465,18.17441211]
[1773179359054,8.81019877,85.494,85.465,18.17441211]
[1773179359351,8.81019877,85.493,85.465,18.17441211]
[1773179359647,3.50461215,85.49,85.465,18.17441211]
[1773179359852,3.50461215,85.5,85.465,18.17441211]
[1773179360055,8.81113483,85.499,85.465,18.17441211]
[1773179360351,10.524,85.51,85.44,3.50461215]
[1773179360352,3.50461215,85.51,85.473,18.18399318]
[1773179360548,8.81040028,85.509,85.473,18.18399318]
[1773179360742,8.81040028,85.508,85.473,18.18399318]
[1773179360943,3.50461215,85.51,85.473,18.18399318]
[1773179361652,3.50461215,85.51,85.475,18.18397552]
[1773179361853,8.80764192,85.514,85.475,18.18397552]
[1773179362054,3.50461215,85.52,85.475,18.18397552]
[1773179362257,10.523,85.518,85.478,18.33448379]
[1773179362456,8.80818428,85.517,85.478,18.33448379]
[1773179362651,10.523,85.518,85.478,18.33448379]
[1773179362952,8.80470778,85.517,85.48,18.33445886]
[1773179363256,3.50461215,85.52,85.48,18.33445886]
[1773179363555,10.525,85.506,85.48,18.33445886]
[1773179363751,10.525,85.506,85.469,18.33445886]
[1773179363947,3.50461215,85.5,85.469,18.33445886]
[1773179365651,10.525,85.506,85.469,18.33445886]
[1773179374551,3.50461215,85.5,85.469,18.33445886]
[1773179375560,3.50221367,85.5,85.469,18.33445886]
[1773179378358,3.50221367,85.51,85.469,18.33445886]
[1773179379364,3.50221367,85.51,85.479,18.724076]
[1773179379763,10.524,85.514,85.479,18.724076]
[1773179379966,3.50221367,85.51,85.479,18.724076]
[1773179385065,3.50221367,85.5,85.479,18.724076]
[1773179385265,3.50221367,85.5,85.468,10.529]
[1773179385266,3.50221367,85.5,85.468,18.7072355]
[1773179385571,3.50221367,85.48,85.42,24.57321367]
[1773179386273,3.50221367,85.48,85.454,10.531]
[1773179386666,3.50221367,85.48,85.416,21.82694688]
[1773179386667,3.50221367,85.48,85.438,10.533]
[1773179387175,3.50221367,85.47,85.438,10.533]
[1773179387576,3.50221367,85.47,85.441,10.533]
[1773179387776,3.50221367,85.47,85.442,16.524362]
[1773179387977,3.50221367,85.48,85.442,16.524362]
[1773179388879,17.77017367,85.48,85.442,16.524362]
[1773179389085,14.26695239,85.478,85.442,16.524362]
[1773179389279,23.03370233,85.478,85.442,16.524362]
[1773179389483,3.50221367,85.47,85.442,16.524362]
[1773179390484,3.50221367,85.48,85.442,16.524362]
[1773179391290,3.50221367,85.48,85.445,10.532]
[1773179391485,3.50221367,85.48,85.446,16.43786503]
[1773179392086,3.50221367,85.49,85.446,16.43786503]
[1773179392285,10.527,85.483,85.446,16.43786503]
[1773179392489,3.50221367,85.48,85.446,16.43786503]
[1773179392878,3.50221367,85.47,85.446,16.43786503]
[1773179393087,3.50221367,85.47,85.435,16.43786503]
[1773179393489,14.36286204,85.475,85.435,16.43786503]
[1773179394392,10.528,85.474,85.435,16.43786503]
[1773179394587,3.50221367,85.47,85.435,16.43786503]
[1773179395886,3.50221367,85.48,85.435,16.43786503]
[1773179396288,8.75610865,85.502,85.435,16.43786503]
[1773179396488,3.50221367,85.49,85.453,16.43786503]
[1773179400495,14.34389406,85.489,85.453,16.43786503]
[1773179400796,3.50221367,85.48,85.453,16.43786503]
[1773179401794,3.50221367,85.48,85.445,10.532]
[1773179401991,24.88246315,85.487,85.445,26.96986503]
[1773179402192,3.50221367,85.48,85.446,16.43786503]
[1773179407095,3.50221367,85.47,85.446,16.43786503]
[1773179407301,3.50221367,85.47,85.435,16.43786503]
[1773179408400,10.529,85.469,85.435,16.43786503]
[1773179408801,3.50221367,85.47,85.435,16.43786503]
[1773179409299,10.529,85.469,85.435,16.43786503]
[1773179409805,3.50221367,85.45,85.422,16.43786503]
[1773179410605,3.50221367,85.45,85.401,16.43786503]
[1773179410798,17.90084155,85.45,85.401,16.43786503]
[1773179410998,3.50221367,85.44,85.401,16.43786503]
[1773179411606,10.532,85.447,85.401,16.43786503]
[1773179414006,10.533,85.438,85.401,16.43786503]
[1773179414206,17.90084155,85.45,85.401,16.43786503]
[1773179414599,3.50221367,85.44,85.401,16.43786503]
[1773179418013,3.50221367,85.44,85.403,16.43786503]
[1773179418213,10.531,85.455,85.403,16.43786503]
[1773179418412,14.83674164,85.462,85.403,16.43786503]
[1773179418413,3.50221367,85.45,85.403,16.43786503]
[1773179419416,3.50221367,85.45,85.413,16.6327177]
[1773179423111,25.24122022,85.449,85.413,16.6327177]
[1773179423311,14.71785265,85.448,85.413,16.6327177]
[1773179426022,3.50221367,85.45,85.406,16.6327177]
[1773179426413,14.68010565,85.449,85.406,16.6327177]
[1773179427112,3.50221367,85.44,85.406,16.6327177]
[1773179432717,14.74630459,85.474,85.408,16.6327177]
[1773179432923,3.50221367,85.45,85.408,16.6327177]
[1773179434228,3.50221367,85.45,85.414,16.6327177]
[1773179435519,10.532,85.449,85.414,16.6327177]
[1773179436623,3.50692287,85.44,85.414,16.6327177]
[1773179448028,3.50692287,85.46,85.414,16.6327177]
[1773179449025,1.0,85.469,85.414,16.6327177]
[1773179449226,18.56720011,85.47,85.414,16.6327177]
[1773179449430,3.50692287,85.47,85.425,16.00699993]
[1773179451334,3.50692287,85.47,85.43,16.00699993]
[1773179452229,8.7751387,85.479,85.433,16.00699993]
[1773179452433,3.50692287,85.48,85.433,16.00699993]
[1773179452630,8.77532084,85.479,85.433,16.00699993]
[1773179452831,3.50692287,85.48,85.433,16.00699993]
[1773179453125,8.77445803,85.479,85.433,16.00699993]
[1773179453434,3.50692287,85.48,85.44,16.00699993]
[1773179453631,8.7736417,85.479,85.44,16.00699993]
[1773179453932,3.50692287,85.48,85.44,16.00699993]
[1773179454124,8.77364836,85.479,85.44,16.00699993]
[1773179454327,3.50692287,85.48,85.44,16.00699993]
[1773179454528,8.77355498,85.479,85.44,16.00699993]
[1773179454838,3.50692287,85.48,85.44,16.00699993]
[1773179455034,8.77355498,85.479,85.44,16.00699993]
[1773179455231,3.50692287,85.48,85.44,16.00699993]
[1773179458637,3.50692287,85.48,85.444,16.00699993]
[1773179461240,3.50692287,85.47,85.444,16.00699993]
[1773179462134,14.77296023,85.479,85.444,16.00699993]
[1773179464333,3.50692287,85.48,85.446,16.00699993]
[1773179464838,18.12406475,85.49,85.446,16.00699993]
[1773179466141,18.12406475,85.49,85.458,16.00699993]
[1773179467344,3.50692287,85.49,85.458,16.00699993]
[1773179469946,3.50692287,85.5,85.46,16.00699993]
[1773179470945,3.50692287,85.5,85.468,16.00699993]
[1773179472148,10.523,85.519,85.47,16.00699993]
[1773179472346,3.50692287,85.52,85.47,16.00699993]
[1773179473442,3.50692287,85.53,85.483,16.00699993]
[1773179474440,3.50692287,85.53,85.496,16.00699993]
[1773179477739,3.50692287,85.53,85.499,10.525]
[1773179477943,3.50692287,85.53,85.5,16.00699993]
[1773179478148,10.52,85.542,85.5,16.00699993]
[1773179478342,3.50692287,85.54,85.5,16.00699993]
[1773179478544,15.30723609,85.585,85.5,16.00699993]
[1773179478748,3.50692287,85.57,85.511,16.00699993]
[1773179480351,3.50692287,85.57,85.526,15.58073478]
[1773179481351,3.50692287,85.57,85.528,10.522]
[1773179481554,3.50692287,85.57,85.529,15.58073478]
[1773179482246,3.50692287,85.56,85.525,15.58073478]
[1773179482445,20.15390306,85.56,85.525,15.58073478]
[1773179483048,3.50692287,85.56,85.525,15.58073478]
[1773179485054,3.50692287,85.55,85.525,15.58073478]
[1773179486254,14.02592287,85.55,85.491,15.58073478]
[1773179486460,3.50692287,85.54,85.51,15.58073478]
[1773179486657,3.50692287,85.54,85.481,15.58073478]
[1773179487257,3.50692287,85.54,85.496,15.58073478]
[1773179487762,3.50692287,85.54,85.509,10.524]
[1773179488272,3.50692287,85.55,85.51,15.58073478]
[1773179488559,3.50692287,85.56,85.51,15.58073478]
[1773179488760,3.50692287,85.56,85.523,15.58073478]
[1773179489457,3.50692287,85.56,85.542,10.52]
[1773179489858,16.64698019,85.563,85.523,15.58073478]
[1773179490058,3.50692287,85.57,85.523,15.58073478]
[1773179490852,3.50692287,85.57,85.557,10.518]
[1773179491056,3.50692287,85.57,85.503,15.58073478]
[1773179491251,3.50692287,85.57,85.511,15.58073478]
[1773179491456,3.50692287,85.58,85.54,15.58073478]
[1773179492365,16.64698019,85.588,85.54,15.58073478]
[1773179492660,3.50692287,85.59,85.54,15.58073478]
[1773179493361,3.50692287,85.59,85.567,10.517]
[1773179494453,3.50692287,85.59,85.574,10.516]
[1773179494658,3.50692287,85.59,85.551,15.58073478]
[1773179496364,3.50692287,85.59,85.57,10.517]
[1773179496565,3.50692287,85.59,85.551,15.58073478]
[1773179497254,3.50692287,85.59,85.57,10.517]
[1773179497456,3.50692287,85.59,85.551,15.58073478]
[1773179497654,3.49521684,85.59,85.551,15.58073478]
[1773179498465,3.49521684,85.59,85.576,10.516]
[1773179498663,3.49521684,85.59,85.551,15.58073478]
[1773179499560,3.49521684,85.58,85.551,15.58073478]
[1773179499964,3.49521684,85.58,85.559,10.518]
[1773179500168,3.49521684,85.58,85.551,15.58073478]
[1773179500765,3.49521684,85.59,85.577,10.516]
[1773179501361,20.14219703,85.59,85.548,15.58073478]
[1773179501568,3.49521684,85.58,85.521,15.58073478]
[1773179501966,3.49521684,85.58,85.52,3.49521684]
[1773179501967,3.49521684,85.58,85.539,15.58073478]
[1773179503373,3.49521684,85.58,85.557,10.518]
[1773179503874,3.49521684,85.57,85.553,10.519]
[1773179504573,3.49521684,85.58,85.553,10.519]
[1773179507683,3.49521684,85.57,85.546,10.52]
[1773179507881,3.49521684,85.56,85.546,10.52]
[1773179508079,20.07172184,85.56,85.524,16.67960021]
[1773179509683,20.07172184,85.56,85.535,10.521]
[1773179510888,20.07172184,85.56,85.543,10.52]
[1773179511381,3.49521684,85.56,85.55,10.519]
[1773179511586,3.49521684,85.56,85.534,15.99151611]
[1773179511988,3.49521684,85.57,85.534,15.99151611]
[1773179513384,3.49521684,85.57,85.547,10.519]
[1773179513586,3.49521684,85.57,85.534,15.99151611]
[1773179514287,3.49521684,85.57,85.555,10.518]
[1773179514988,3.49521684,85.58,85.555,4.94309648]
[1773179515184,16.93442917,85.586,85.565,10.517]
[1773179515382,3.49521684,85.59,85.558,15.99151611]
[1773179517389,3.49521684,85.59,85.563,10.517]
[1773179518793,3.49521684,85.59,85.57,10.517]
[1773179519382,3.49521684,85.59,85.577,10.516]
[1773179519690,3.49521684,85.6,85.577,10.516]
[1773179520991,3.49521684,85.59,85.569,26.50851611]
[1773179521288,3.49521684,85.59,85.569,15.99151611]
[1773179521703,3.49521684,85.59,85.578,10.516]
[1773179523199,3.49521684,85.6,85.578,10.516]
[1773179523998,3.49521684,85.6,85.569,15.99151611]
[1773179525501,3.49521684,85.6,85.576,10.516]
[1773179525897,16.93442917,85.585,85.483,15.99151611]
[1773179526200,3.49521684,85.56,85.491,15.99151611]
[1773179526501,3.49521684,85.56,85.518,15.99151611]
[1773179527391,3.49521684,85.56,85.531,10.521]
[1773179528000,3.49521684,85.55,85.531,10.521]
[1773179529097,3.49521684,85.55,85.518,15.99151611]
[1773179530502,3.49521684,85.55,85.531,10.521]
[1773179530697,3.49521684,85.54,85.518,15.99151611]
[1773179532404,3.49521684,85.54,85.531,10.521]
[1773179532606,3.49521684,85.54,85.518,15.99151611]
[1773179533606,3.49521684,85.55,85.531,10.521]
[1773179533796,3.49521684,85.55,85.518,15.99151611]
[1773179534506,3.49521684,85.55,85.531,10.521]
[1773179535401,3.49521684,85.55,85.52,10.523]
[1773179535595,3.49521684,85.55,85.518,15.99151611]
[1773179536502,3.49521684,85.55,85.527,10.522]
[1773179536708,3.49521684,85.55,85.518,15.99151611]
[1773179538108,3.49521684,85.54,85.518,15.99151611]
[1773179538401,3.49521684,85.54,85.506,15.99151611]
[1773179538809,3.49521684,85.54,85.517,10.523]
[1773179545813,16.93442917,85.555,85.517,10.523]
[1773179546110,3.49521684,85.55,85.517,16.25916483]
[1773179546908,3.49521684,85.55,85.534,10.521]
[1773179549110,3.49521684,85.56,85.534,10.521]
[1773179553828,3.49521684,85.56,85.539,10.52]
[1773179555431,3.49521684,85.57,85.544,16.25916483]
[1773179556530,3.49521684,85.57,85.546,10.52]
[1773179559436,16.76230278,85.586,85.552,10.519]
[1773179559624,3.49648478,85.57,85.553,16.25916483]
[1773179560132,3.49648478,85.58,85.553,16.25916483]
[1773179561432,3.49648478,85.58,85.556,10.518]
[1773179562436,3.49648478,85.58,85.563,16.25916483]
[1773179562735,3.49648478,85.59,85.563,16.25916483]
[1773179563331,3.49648478,85.59,85.565,10.517]
[1773179564538,3.49648478,85.59,85.568,10.517]
[1773179565238,3.49648478,85.6,85.572,16.25916483]
[1773179566333,3.49648478,85.6,85.575,10.516]
[1773179566534,16.76230278,85.589,85.527,16.25916483]
[1773179566736,3.49648478,85.58,85.527,16.25916483]
[1773179567337,3.49648478,85.58,85.549,10.519]
[1773179569543,3.49648478,85.58,85.549,27.33873273]
[1773179569745,3.49648478,85.58,85.55,16.81973273]
[1773179575752,16.76230278,85.589,85.551,10.519]
[1773179575952,16.85152532,85.588,85.551,10.519]
[1773179576756,16.85152532,85.587,85.551,10.519]
[1773179576955,3.49648478,85.58,85.551,10.519]
[1773179577358,3.49648478,85.58,85.551,27.33873273]
[1773179578054,3.49648478,85.58,85.554,16.81973273]
[1773179578252,3.49648478,85.59,85.554,16.81973273]
[1773179578859,3.49648478,85.59,85.561,10.518]
[1773179580565,3.49648478,85.59,85.564,16.81973273]
[1773179581162,3.49648478,85.59,85.531,16.81973273]
[1773179582263,3.49648478,85.59,85.554,10.519]
[1773179582463,3.49648478,85.59,85.554,27.33873273]
[1773179583365,3.49648478,85.59,85.555,16.81973273]
[1773179585271,16.85152532,85.598,85.559,10.518]
[1773179585570,20.3480101,85.59,85.559,10.518]
[1773179585871,3.49648478,85.6,85.562,16.81973273]
[1773179587574,3.49648478,85.6,85.566,16.81973273]
[1773179588674,16.85152532,85.609,85.568,16.81973273]
[1773179589671,3.49648478,85.6,85.571,10.517]
[1773179590874,3.49648478,85.6,85.571,16.81973273]
[1773179591770,3.49648478,85.59,85.571,16.81973273]
[1773179592273,3.49648478,85.6,85.571,16.81973273]
[1773179593473,16.85152532,85.609,85.571,16.81973273]
[1773179593776,16.85152532,85.609,85.573,16.81973273]
[1773179594271,3.49648478,85.61,85.573,16.81973273]
[1773179595472,3.49648478,85.61,85.575,16.81973273]
[1773179595870,3.49648478,85.61,85.577,10.516]
[1773179596176,3.49648478,85.61,85.578,16.81973273]
[1773179597477,3.49648478,85.61,85.581,10.515]
[1773179597678,16.85152532,85.619,85.582,16.81973273]
[1773179598071,25.55156687,85.619,85.582,16.81973273]
[1773179598369,3.49648478,85.61,85.582,16.81973273]
[1773179600379,3.49648478,85.61,85.584,17.2326224]
[1773179600678,3.49648478,85.62,85.584,17.2326224]
[1773179601475,8.70012001,85.629,85.597,17.2326224]
[1773179601675,3.49648478,85.63,85.597,17.2326224]
[1773179607087,3.49648478,85.62,85.597,17.2326224]
[1773179607981,3.49648478,85.62,85.599,17.2326224]
[1773179609685,3.49648478,85.63,85.599,17.2326224]
[1773179612290,3.49648478,85.63,85.601,17.2326224]
[1773179615394,16.1034749,85.639,85.601,17.2326224]
[1773179615586,3.49648478,85.63,85.604,17.2326224]
[1773179617685,16.1034749,85.639,85.604,17.2326224]
[1773179617686,16.1034749,85.641,85.604,17.2326224]
[1773179617892,3.49648478,85.63,85.604,17.2326224]
[1773179619397,16.1034749,85.653,85.609,17.2326224]
[1773179619599,20.92324497,85.715,85.609,17.2326224]
[1773179619600,16.1034749,85.668,85.609,17.2326224]
[1773179619793,3.48968521,85.66,85.609,17.2326224]
[1773179620597,3.48968521,85.66,85.63,10.509]
[1773179620998,3.48968521,85.66,85.63,27.7416224]
[1773179623299,3.48968521,85.66,85.631,17.2326224]
[1773179623692,16.1034749,85.668,85.577,21.032]
[1773179623693,16.1034749,85.668,85.633,17.2326224]
[1773179624601,3.48968521,85.66,85.633,17.2326224]
[1773179625400,3.48968521,85.68,85.635,17.2326224]
[1773179626103,3.48968521,85.68,85.648,10.507]
[1773179626293,16.1034749,85.703,85.649,17.2326224]
[1773179626497,3.48968521,85.69,85.649,17.2326224]
[1773179626701,3.48968521,85.67,85.621,17.2326224]
[1773179628499,3.48968521,85.67,85.635,16.57869872]
[1773179630894,3.48968521,85.67,85.638,10.508]
[1773179631095,16.1034749,85.679,85.639,17.19200141]
[1773179631405,10.502,85.688,85.639,17.19200141]
[1773179631705,3.48968521,85.68,85.639,17.19200141]
[1773179633096,10.503,85.679,85.639,17.19200141]
[1773179633302,3.48968521,85.68,85.639,17.19200141]
[1773179633905,3.48968521,85.68,85.641,17.19200141]
[1773179635304,3.48968521,85.67,85.641,17.19200141]
[1773179635504,3.48968521,85.67,85.632,10.509]
[1773179636207,3.48968521,85.67,85.633,17.19200141]
[1773179639600,16.26570346,85.693,85.633,17.19200141]
[1773179639800,3.48968521,85.69,85.633,17.19200141]
[1773179640107,16.26570346,85.679,85.633,17.19200141]
[1773179641408,16.26570346,85.699,85.635,17.19200141]
[1773179641606,16.26570346,85.699,85.641,17.19200141]
[1773179641807,3.48968521,85.69,85.641,17.19200141]
[1773179642510,3.48968521,85.69,85.654,17.19200141]
[1773179643916,3.48968521,85.69,85.656,10.506]
[1773179644109,3.48968521,85.69,85.657,17.19200141]
[1773179644612,26.76670346,85.698,85.657,17.19200141]
[1773179644916,3.48968521,85.69,85.657,17.19200141]
[1773179646404,3.48968521,85.69,85.658,17.19200141]
[1773179647515,3.48968521,85.69,85.66,17.19200141]
[1773179647813,3.48968521,85.7,85.66,17.19200141]
[1773179648013,3.48968521,85.7,85.668,17.19200141]
[1773179651108,3.48968521,85.71,85.67,17.19200141]
[1773179651809,16.26570346,85.699,85.657,17.19200141]
[1773179652016,19.75538867,85.69,85.657,17.19200141]
[1773179652216,19.75538867,85.69,85.631,17.19200141]
[1773179652217,3.48968521,85.68,85.631,17.19200141]
[1773179652718,3.48968521,85.68,85.645,10.507]
[1773179654424,3.48968521,85.68,85.646,17.19200141]
[1773179654814,3.48968521,85.68,85.645,10.507]
[1773179654815,35.04,85.73,85.664,17.19200141]
[1773179655017,3.48968521,85.71,85.664,17.19200141]
[1773179655218,35.04,85.726,85.664,17.19200141]
[1773179655418,3.48968521,85.71,85.664,17.19200141]
[1773179656021,10.499,85.718,85.678,17.19200141]
[1773179657423,10.499,85.718,85.68,17.19200141]
[1773179657625,3.48968521,85.72,85.68,17.19200141]
[1773179658127,3.48968521,85.71,85.68,17.19200141]
[1773179662227,10.5,85.709,85.68,17.19200141]
[1773179662728,20.70052238,85.69,85.63,3.48968521]
[1773179663119,3.48968521,85.68,85.62,3.48968521]
[1773179663630,3.48968521,85.68,85.643,10.508]
[1773179664522,3.48968521,85.68,85.644,2.59328025]
[1773179666938,3.48968521,85.68,85.647,2.504557]
[1773179667634,20.70052238,85.69,85.647,2.504557]
[1773179668036,3.48968521,85.69,85.653,2.59042461]
[1773179668736,3.48968521,85.7,85.663,2.61513236]
[1773179669329,3.48968521,85.7,85.664,13.12198839]
[1773179669634,3.48968521,85.7,85.665,2.64138488]
[1773179670437,3.48968521,85.7,85.668,10.505]
[1773179670736,3.48968521,85.71,85.669,2.74216699]
[1773179671328,10.499,85.717,85.669,2.74216699]
[1773179672337,10.499,85.717,85.679,2.77420522]
[1773179674039,3.48968521,85.71,85.679,2.77420522]
[1773179676736,10.499,85.717,85.679,2.77420522]
[1773179676950,10.499,85.717,85.681,10.503]
[1773179677141,3.48968521,85.71,85.681,12.91582134]
[1773179677336,3.48968521,85.72,85.681,12.91582134]
[1773179677537,20.70052238,85.72,85.681,12.91582134]
[1773179678739,20.70052238,85.72,85.683,10.503]
[1773179679739,10.499,85.718,85.682,2.49234704]
[1773179679937,17.21083717,85.717,85.676,10.504]
[1773179682542,17.21083717,85.717,85.679,10.503]
[1773179684448,17.21083717,85.709,85.671,10.504]
[1773179685147,10.5,85.708,85.665,2.4518372]
[1773179685349,17.21083717,85.707,85.665,2.4518372]
[1773179687151,3.48484766,85.71,85.668,2.84443297]
[1773179687542,21.1498825,85.71,85.668,2.84443297]
[1773179688046,17.66503484,85.708,85.668,2.84443297]
[1773179690350,17.66095057,85.697,85.654,3.00811915]
[1773179690755,10.502,85.693,85.654,3.00811915]
[1773179691247,17.66095057,85.697,85.654,3.00811915]
[1773179691453,17.66095057,85.697,85.657,10.506]
[1773179694949,17.66095057,85.708,85.658,3.65129508]
[1773179695544,10.5,85.707,85.667,3.67084224]
[1773179695750,17.66095057,85.706,85.667,3.67084224]
[1773179696453,17.66095057,85.706,85.669,3.67011956]
[1773179697154,3.48484766,85.72,85.675,3.67162533]
[1773179697155,28.15895057,85.719,85.675,3.67162533]
[1773179697355,8.68029598,85.718,85.675,3.67162533]
[1773179697654,8.68029598,85.717,85.675,3.67162533]
[1773179697855,28.15895057,85.719,85.675,3.67162533]
[1773179698051,8.68114895,85.718,85.686,10.502]
[1773179698246,8.68114895,85.725,85.687,3.61311934]
[1773179698451,17.66095057,85.729,85.687,3.61311934]
[1773179698654,8.68288936,85.728,85.687,3.61311934]
[1773179698950,17.66095057,85.729,85.687,3.61311934]
[1773179699350,17.66095057,85.729,85.688,10.502]
[1773179699550,17.66095057,85.729,85.689,3.64879486]
[1773179699955,10.497,85.727,85.689,3.64879486]
[1773179700756,17.66095057,85.729,85.689,3.64879486]
[1773179702357,17.66095057,85.729,85.698,10.501]
[1773179703656,17.66095057,85.745,85.704,3.03914871]
[1773179705463,17.66095057,85.745,85.717,10.499]
[1773179708264,17.66095057,85.745,85.677,21.007]
[1773179708265,17.66095057,85.745,85.691,2.67363243]
[1773179708563,17.66095057,85.739,85.691,2.67363243]
[1773179709066,17.66095057,85.729,85.679,2.68978727]
[1773179709565,14.25685514,85.778,85.637,42.69690971]
[1773179709566,17.66095057,85.709,85.661,2.7049134]
[1773179710062,3.48484766,85.7,85.661,2.7049134]
[1773179710372,21.14579823,85.7,85.661,2.7049134]
[1773179710955,17.66095057,85.7,85.661,2.7049134]
[1773179712363,17.66095057,85.7,85.666,10.505]
[1773179712863,21.14579823,85.71,85.667,2.77849646]
[1773179713365,21.14579823,85.71,85.668,10.505]
[1773179715168,21.14579823,85.71,85.668,13.32349332]
[1773179715370,21.14579823,85.71,85.672,2.81849332]
[1773179715870,21.14579823,85.71,85.674,10.504]
[1773179716261,21.14579823,85.71,85.674,13.3456743]
[1773179719169,21.14579823,85.71,85.674,10.504]
[1773179719667,3.48484766,85.71,85.677,2.96914856]
[1773179720374,3.48484766,85.71,85.678,10.503]
[1773179721974,3.48484766,85.71,85.677,2.96914856]
[1773179722274,18.07824824,85.719,85.677,2.96914856]
[1773179723575,18.07824824,85.719,85.678,10.503]
[1773179725276,18.07824824,85.719,85.677,2.96914856]
[1773179725277,18.07824824,85.719,85.685,10.502]
[1773179726876,18.07824824,85.719,85.685,13.48162067]
[1773179727078,18.07824824,85.719,85.686,2.98024714]
[1773179728985,18.07824824,85.719,85.689,10.502]
[1773179732379,21.5630959,85.73,85.691,13.58052423]
[1773179732787,21.5630959,85.73,85.692,3.07852423]
[1773179733686,18.07824824,85.73,85.694,10.501]
[1773179734291,18.07824824,85.73,85.7,10.501]
[1773179737393,18.07824824,85.73,85.707,10.5]
[1773179738587,18.07824824,85.73,85.713,10.499]
[1773179739289,18.07824824,85.741,85.719,10.498]
[1773179743191,18.07824824,85.756,85.714,3.43260743]
[1773179743790,18.07824824,85.756,85.736,10.496]
[1773179745098,18.07824824,85.756,85.707,3.48650501]
[1773179745299,3.48086009,85.75,85.707,3.48650501]
[1773179745499,18.07824824,85.749,85.707,3.48650501]
[1773179746594,18.07824824,85.749,85.712,10.499]
[1773179751001,18.14619,85.739,85.712,10.499]
[1773179753500,18.14619,85.749,85.712,10.499]
[1773179756207,18.14619,85.739,85.696,4.10443544]
[1773179756408,21.62705009,85.73,85.673,4.11308951]
[1773179757108,21.62705009,85.73,85.695,10.501]
[1773179758610,21.62705009,85.73,85.7,10.501]
[1773179761809,21.62705009,85.73,85.654,21.013]